bitfinex/quotes_SOLUSD_20250907
["timestamp","ask_amount","ask_price","bid_price","bid_amount"]
[1757276432238,82.22130919,203.03,203.02,0.03]
[1757276433040,49.42668967,203.03,203.02,0.03]
[1757276433243,87.16668967,203.03,203.02,0.03]
[1757276435165,13.59559401,203.02,203.0,0.03]
[1757276435464,52.38494065,203.01,203.0,0.03]
[1757276435844,54.357765,203.01,203.0,0.03]
[1757276436370,53.80368211,203.01,203.0,0.03]
[1757276446374,49.21118609,203.01,203.0,0.03]
[1757276447372,11.49118609,203.01,203.0,0.03]
[1757276447674,49.19118609,203.01,203.0,0.74]
[1757276449180,47.21836174,203.01,203.0,0.74]
[1757276449474,47.21836174,203.01,203.0,0.03]
[1757276455163,47.21836174,203.01,203.0,0.74]
[1757276455364,47.21836174,203.01,203.0,0.03]
[1757276456585,47.21836174,203.01,203.0,0.74]
[1757276456883,47.21836174,203.01,203.0,0.03]
[1757276458593,49.61836174,203.01,203.0,0.03]
[1757276462979,63.21395575,203.01,203.0,0.74]
[1757276465493,60.81395575,203.01,203.0,0.03]
[1757276468575,63.11395575,203.01,203.0,0.03]
[1757276468989,58.52145973,203.01,203.0,0.03]
[1757276469295,63.11395575,203.01,203.0,0.03]
[1757276477477,66.80731925,203.01,203.0,0.03]
[1757276488987,29.10731925,203.01,203.0,0.73]
[1757276489187,66.80731925,203.01,203.0,0.73]
[1757276490083,29.10731925,203.01,203.0,0.73]
[1757276490283,66.80731925,203.01,203.0,0.73]
[1757276490604,64.50731925,203.01,203.0,0.73]
[1757276492403,65.70731925,203.01,203.0,0.73]
[1757276495706,61.11482323,203.01,203.0,0.73]
[1757276495911,61.11482323,203.01,203.0,0.03]
[1757276496208,65.70731925,203.01,203.0,0.03]
[1757276497910,19.72145973,203.01,203.0,0.03]
[1757276498210,62.01395575,203.01,203.0,0.03]
[1757276498508,60.36040775,203.01,203.0,0.03]
[1757276500214,13.59559401,203.0,202.97,0.73]
[1757276500513,2.93894802,202.98,202.97,0.73]
[1757276501208,2.93894802,202.98,202.97,0.03]
[1757276502811,7.86554177,202.98,202.97,0.03]
[1757276503010,39.59559401,202.96,202.93,0.73]
[1757276503308,77.29559401,202.96,202.93,0.73]
[1757276503510,80.23454203,202.96,202.93,0.73]
[1757276504709,88.85288381,202.96,202.93,0.73]
[1757276504911,51.15288381,202.96,202.93,0.73]
[1757276505095,85.16162125,202.96,202.93,0.73]
[1757276506409,13.59559401,202.95,202.93,0.03]
[1757276506601,54.23454203,202.94,202.93,0.03]
[1757276506797,54.23454203,202.94,202.93,0.73]
[1757276507918,59.16210682,202.94,202.93,0.73]
[1757276509616,61.13570988,202.94,202.93,0.03]
[1757276509830,61.13570988,202.94,202.93,0.73]
[1757276516504,61.13570988,202.94,202.93,0.03]
[1757276517316,61.13570988,202.94,202.93,0.73]
[1757276520309,23.43570988,202.94,202.93,0.73]
[1757276520507,61.13570988,202.94,202.93,0.73]
[1757276525345,61.19570988,202.94,202.93,0.73]
[1757276529340,58.25676186,202.94,202.93,0.73]
[1757276529541,61.19570988,202.94,202.93,0.73]
[1757276536821,61.19570988,202.94,202.93,0.03]
[1757276539522,23.49570988,202.94,202.93,0.03]
[1757276539739,61.17570988,202.94,202.93,0.03]
[1757276547343,64.87161655,202.94,202.93,0.03]
[1757276549146,24.25266853,202.94,202.93,0.03]
[1757276549334,61.17570988,202.94,202.93,0.75]
[1757276554855,62.47570988,202.94,202.93,0.75]
[1757276558456,64.13092469,202.94,202.93,0.75]
[1757276559760,21.85676186,202.94,202.93,0.75]
[1757276559945,64.13092469,202.94,202.93,0.75]
[1757276560260,67.82724009,202.94,202.93,0.03]
[1757276560463,67.82724009,202.94,202.92,1e-08]
[1757276560652,4.59416283,202.93,202.92,1e-08]
[1757276561444,32.56776589,202.93,202.92,1e-08]
[1757276563264,37.4955735,202.93,202.92,1e-08]
[1757276566253,51.09116751,202.93,202.92,1e-08]
[1757276567767,4.59416283,202.92,202.91,0.03]
[1757276567952,42.27416283,202.92,202.91,0.03]
[1757276568477,44.24786327,202.92,202.91,0.03]
[1757276571170,49.17591373,202.92,202.91,0.73]
[1757276573462,13.59559401,202.91,202.9,0.03]
[1757276573660,18.18975684,202.91,202.9,0.03]
[1757276574069,20.16345728,202.91,202.9,0.03]
[1757276575272,25.09175061,202.91,202.9,0.03]
[1757276575475,62.77175061,202.91,202.9,0.73]
[1757276576663,62.77175061,202.91,202.9,0.03]
[1757276577871,25.09175061,202.91,202.9,0.03]
[1757276578271,62.77175061,202.91,202.9,0.03]
[1757276579377,25.09175061,202.91,202.9,0.03]
[1757276579565,62.77175061,202.91,202.9,0.03]
[1757276580358,25.09175061,202.91,202.9,0.03]
[1757276580563,62.77175061,202.91,202.9,0.03]
[1757276580966,25.09175061,202.91,202.9,0.03]
[1757276581170,62.77175061,202.91,202.9,0.03]
[1757276581380,25.09175061,202.91,202.9,0.03]
[1757276581678,62.77175061,202.91,202.9,0.03]
[1757276582583,67.36591344,202.91,202.88,1e-08]
[1757276582783,44.18975684,202.89,202.88,1e-08]
[1757276582983,81.86975684,202.89,202.88,1e-08]
[1757276583283,82.57975684,202.89,202.88,1e-08]
[1757276583792,89.48262605,202.89,202.88,1e-08]
[1757276589092,84.88846322,202.89,202.88,1e-08]
[1757276589301,89.48262605,202.89,202.88,1e-08]
[1757276600593,89.48262605,202.89,202.84,0.1]
[1757276600594,101.8045739,202.89,202.84,0.1]
[1757276600899,101.8045739,202.89,202.83,0.03]
[1757276600900,13.59559401,202.84,202.83,0.03]
[1757276601097,55.86975684,202.84,202.83,0.03]
[1757276601798,60.46391967,202.84,202.83,0.03]
[1757276602210,61.17391967,202.84,202.83,0.03]
[1757276602515,66.10391375,202.84,202.83,0.03]
[1757276604580,197.79391375,202.84,202.83,0.03]
[1757276606811,198.50391375,202.84,202.83,0.03]
[1757276608307,198.50391375,202.84,202.83,0.71]
[1757276608308,193.19975092,202.84,202.83,0.71]
[1757276608517,197.79391375,202.84,202.83,0.71]
[1757276608804,197.79391375,202.84,202.83,0.03]
[1757276612381,198.50391375,202.84,202.83,0.03]
[1757276614794,66.10391375,202.84,202.83,0.03]
[1757276614995,23.82975092,202.84,202.83,0.03]
[1757276615186,66.10391375,202.84,202.83,0.03]
[1757276620305,64.45380816,202.84,202.83,0.03]
[1757276620502,60.77975092,202.84,202.83,0.03]
[1757276620708,64.39380816,202.84,202.83,0.03]
[1757276624087,23.78975092,202.84,202.83,0.03]
[1757276624295,64.39380816,202.84,202.83,0.03]
[1757276628093,64.45380816,202.84,202.83,0.03]
[1757276636518,26.79380816,202.84,202.83,0.03]
[1757276636702,64.45380816,202.84,202.83,0.03]
[1757276640128,68.14507675,202.84,202.83,0.03]
[1757276640319,63.78380816,202.84,202.83,0.03]
[1757276640519,64.45380816,202.84,202.83,0.03]
[1757276643831,63.78380816,202.84,202.83,0.03]
[1757276644736,64.45380816,202.84,202.83,0.03]
[1757276645106,68.15052158,202.84,202.83,0.03]
[1757276647112,68.15112191,202.84,202.83,0.03]
[1757276648517,29.82112191,202.84,202.83,0.03]
[1757276648721,67.48112191,202.84,202.83,0.03]
[1757276649512,67.48112191,202.84,202.83,0.71]
[1757276650307,68.17112191,202.84,202.83,0.03]
[1757276650503,67.48112191,202.84,202.83,0.03]
[1757276650828,42.64999408,202.84,202.83,0.71]
[1757276654114,37.72,202.84,202.83,0.71]
[1757276655032,42.64999408,202.84,202.83,0.71]
[1757276657530,45.59405132,202.84,202.83,0.71]
[1757276658124,42.64999408,202.84,202.83,0.71]
[1757276658437,45.59405132,202.84,202.83,0.71]
[1757276663120,42.64999408,202.84,202.83,0.71]
[1757276668450,4.98999408,202.84,202.83,0.71]
[1757276668632,37.7,202.84,202.83,0.71]
[1757276673558,42.62999408,202.84,202.83,0.03]
[1757276693047,43.31999408,202.84,202.83,0.03]
[1757276694061,42.62999408,202.84,202.83,0.03]
[1757276694258,43.31999408,202.84,202.83,0.03]
[1757276695966,42.62999408,202.84,202.83,0.03]
[1757276696568,43.31999408,202.84,202.83,0.03]
[1757276697347,42.62999408,202.84,202.83,0.03]
[1757276697968,42.60999408,202.84,202.83,0.03]
[1757276698777,43.29999408,202.84,202.83,0.03]
[1757276698964,42.60999408,202.84,202.83,0.03]
[1757276699165,43.29999408,202.84,202.83,0.03]
[1757276699370,42.60999408,202.84,202.83,0.03]
[1757276703060,43.29999408,202.84,202.83,0.03]
[1757276703656,61.49294991,202.84,202.83,0.03]
[1757276704571,63.46742976,202.84,202.83,0.03]
[1757276719274,58.87006794,202.84,202.83,0.03]
[1757276719593,63.46742976,202.84,202.83,0.03]
[1757276724782,25.15742976,202.84,202.83,0.03]
[1757276724974,44.58447393,202.84,202.83,0.75]
[1757276725295,49.18183575,202.84,202.83,0.75]
[1757276727202,49.18183575,202.84,202.83,0.03]
[1757276729622,44.58447393,202.84,202.83,0.03]
[1757276729810,49.18183575,202.84,202.83,0.03]
[1757276729981,63.46742976,202.84,202.83,0.03]
[1757276730177,62.77742976,202.84,202.83,0.03]
[1757276732718,63.46742976,202.84,202.83,0.03]
[1757276733817,62.77742976,202.84,202.83,0.03]
[1757276736314,0.06,202.87,202.83,0.74]
[1757276736511,42.52950803,202.86,202.83,0.74]
[1757276736693,42.52950803,202.86,202.84,2.2211295]
[1757276736897,4.92999408,202.84,202.83,0.03]
[1757276737097,42.52999408,202.84,202.83,2.25218048]
[1757276737592,42.52999408,202.84,202.83,0.03]
[1757276738199,47.1273559,202.84,202.83,0.03]
[1757276742297,45.47306582,202.84,202.83,0.03]
[1757276742524,46.13306582,202.84,202.83,0.03]
[1757276742705,59.72865983,202.84,202.83,0.03]
[1757276743109,61.73284732,202.84,202.83,0.03]
[1757276743614,59.72865983,202.84,202.83,0.03]
[1757276744432,22.12865983,202.84,202.83,0.03]
[1757276744722,59.72865983,202.84,202.83,0.03]
[1757276746103,61.76304222,202.84,202.83,0.03]
[1757276748909,39.59559401,202.81,202.8,1e-08]
[1757276749226,80.13866575,202.81,202.8,1e-08]
[1757276749434,80.79866575,202.81,202.8,1e-08]
[1757276750028,82.77353553,202.81,202.8,1e-08]
[1757276751333,87.70425886,202.81,202.8,1e-08]
[1757276751830,50.10425886,202.81,202.8,1e-08]
[1757276752019,87.70425886,202.81,202.8,1e-08]
[1757276752524,50.10425886,202.81,202.8,1e-08]
[1757276752726,87.70425886,202.81,202.8,1e-08]
[1757276753412,47.16118712,202.81,202.8,1e-08]
[1757276753615,87.70425886,202.81,202.8,1e-08]
[1757276755524,13.59559401,202.8,202.78,0.03]
[1757276755730,59.40587955,202.79,202.78,0.03]
[1757276755908,64.99708917,202.79,202.78,0.03]
[1757276756109,26.4092773,202.79,202.78,0.03]
[1757276756309,61.72513524,202.79,202.78,0.03]
[1757276756726,61.06513524,202.79,202.78,0.03]
[1757276757235,61.72513524,202.79,202.78,0.03]
[1757276767247,66.66817261,202.79,202.78,0.03]
[1757276769319,29.04817261,202.79,202.78,0.03]
[1757276769520,66.66817261,202.79,202.78,0.03]
[1757276780834,66.66817261,202.79,202.78,0.71]
[1757276780835,23.44513524,202.79,202.78,0.71]
[1757276781038,61.06513524,202.79,202.78,0.71]
[1757276781234,59.08987537,202.79,202.78,0.71]
[1757276786257,62.06294711,202.79,202.78,0.71]
[1757276786437,62.06294711,202.79,202.78,0.03]
[1757276788939,62.76294711,202.79,202.78,0.03]
[1757276798174,24.44294711,202.79,202.78,0.03]
[1757276798365,62.06294711,202.79,202.78,0.03]
[1757276802464,63.72113437,202.79,202.78,0.03]
[1757276802966,59.11987537,202.79,202.78,0.03]
[1757276803165,63.72113437,202.79,202.78,0.03]
[1757276804706,21.49987537,202.79,202.78,0.73]
[1757276804986,7.90428136,202.79,202.78,0.73]
[1757276805173,50.12554036,202.79,202.78,0.73]
[1757276805594,47.15246862,202.79,202.78,0.73]
[1757276807372,49.12714341,202.79,202.78,0.73]
[1757276809806,47.15246862,202.79,202.78,0.73]
[1757276813010,47.15246862,202.79,202.78,0.03]
[1757276817285,9.53246862,202.79,202.78,0.03]
[1757276817477,47.15246862,202.79,202.78,0.73]
[1757276817896,47.15246862,202.79,202.78,0.03]
[1757276819088,0.06,202.8,202.78,0.73]
[1757276819479,37.62,202.79,202.78,0.73]
[1757276819684,37.62,202.79,202.78,5.331259]
[1757276819892,0.06,202.8,202.78,7.30564139]
[1757276820096,0.06,202.8,202.79,5.09437996]
[1757276820296,37.64,202.82,202.79,5.09437996]
[1757276820493,37.64,202.82,202.81,4.601259]
[1757276820806,0.06,202.83,202.82,26.0]
[1757276823915,0.06,202.83,202.82,50.33230164]
[1757276826104,0.06,202.83,202.82,45.40182142]
[1757276826307,0.06,202.83,202.82,30.601259]
[1757276826612,0.06,202.83,202.82,35.53173922]
[1757276827698,0.06,202.83,202.82,30.601259]
[1757276829906,0.06,202.83,202.82,35.53173922]
[1757276832396,0.06,202.83,202.82,37.50534228]
[1757276833118,0.06,202.83,202.82,35.53173922]
[1757276834422,0.06,202.83,202.82,36.02478724]
[1757276834795,0.06,202.83,202.82,11.99819556]
[1757276835517,0.06,202.83,202.82,25.59378957]
[1757276835710,0.06,202.84,202.82,25.59378957]
[1757276835915,0.06,202.84,202.83,18.19685301]
[1757276836400,0.06,202.84,202.83,23.12709015]
[1757276836604,0.06,202.84,202.83,54.72010911]
[1757276836605,1e-08,202.84,202.83,54.72010911]
[1757276838819,1e-08,202.84,202.83,92.36010911]
[1757276840423,0.06,202.86,202.83,92.36010911]
[1757276840626,0.06,202.86,202.85,44.19685301]
[1757276840923,0.06,202.87,202.85,44.19685301]
[1757276841103,0.06,202.87,202.86,18.68980381]
[1757276841512,0.06,202.87,202.86,20.66253086]
[1757276841712,0.06,202.87,202.86,58.30253086]
[1757276842524,0.06,202.87,202.86,63.23203889]
[1757276846230,0.06,202.87,202.86,143.33203889]
[1757276846541,0.06,202.87,202.86,142.83908809]
[1757276850118,0.06,202.9,202.86,172.45908809]
[1757276850319,0.06,202.9,202.87,10.02345054]
[1757276850739,0.06,202.9,202.87,11.99617758]
[1757276850921,0.06,202.9,202.87,105.69177159]
[1757276851237,0.06,202.9,202.87,109.80010409]
[1757276852515,0.06,202.9,202.88,13.59559401]
[1757276852826,0.06,202.9,202.88,141.01101421]
[1757276853027,0.06,202.9,202.88,140.51811201]
[1757276853237,0.06,202.9,202.88,142.49064449]
[1757276853633,0.06,202.9,202.88,172.11064449]
[1757276853936,0.06,202.9,202.89,23.29098992]
[1757276854324,0.06,202.9,202.89,25.26342513]
[1757276854527,0.06,202.9,202.89,67.81220427]
[1757276855316,0.06,202.9,202.89,30.19220427]
[1757276855545,0.06,202.9,202.89,67.81220427]
[1757276858233,0.06,202.9,202.89,147.91220427]
[1757276858431,0.06,202.9,202.89,147.41932636]
[1757276860317,0.06,202.9,202.89,177.03932636]
[1757276864444,0.06,202.9,202.89,182.52442361]
[1757276865552,0.76,202.9,202.89,182.52442361]
[1757276868850,0.76,202.9,202.89,116.62121435]
[1757276869045,0.76,202.9,202.89,119.5587374]
[1757276873248,0.06,202.9,202.89,144.90442361]
[1757276873451,0.06,202.91,202.89,144.90442361]
[1757276873744,0.06,202.91,202.9,15.18046887]
[1757276874147,0.06,202.91,202.9,17.15290409]
[1757276875340,0.06,202.91,202.9,59.66144031]
[1757276875957,0.06,202.91,202.9,139.76144031]
[1757276876146,0.06,202.91,202.9,139.26858669]
[1757276876734,0.06,202.91,202.9,152.8641807]
[1757276877447,0.76,202.91,202.9,152.8641807]
[1757276880653,0.76,202.91,202.9,182.4841807]
[1757276882357,0.06,202.91,202.9,182.4841807]
[1757276882648,0.06,202.95,202.94,13.59559401]
[1757276882825,0.06,202.97,202.94,84.22587353]
[1757276883028,0.06,202.97,202.95,16.53311706]
[1757276883224,0.76,202.97,202.95,16.53311706]
[1757276883429,0.06,202.97,202.95,18.50496888]
[1757276883647,0.76,202.96,202.95,18.50496888]
[1757276883849,0.06,202.96,202.95,18.50496888]
[1757276884156,0.76,202.96,202.95,18.50496888]
[1757276884455,0.76,202.96,202.95,23.43229088]
[1757276887740,0.76,202.96,202.95,103.53229088]
[1757276889449,0.06,202.96,202.95,103.53229088]
[1757276889648,0.76,202.96,202.95,103.53229088]
[1757276890462,0.76,202.96,202.95,133.15229088]
[1757276892440,0.06,202.96,202.95,133.15229088]
[1757276892866,0.76,202.96,202.95,133.15229088]
[1757276896373,0.06,202.96,202.95,133.15229088]
[1757276897071,0.06,202.97,202.96,13.59559401]
[1757276897249,0.06,202.97,202.96,164.30582498]
[1757276897455,0.76,202.99,202.98,26.0]
[1757276897666,0.76,202.99,202.98,66.49752305]
[1757276898263,0.76,202.99,202.98,68.46918047]
[1757276898666,0.76,202.99,202.98,73.39577422]
[1757276900453,0.76,202.99,202.98,103.01577422]
[1757276902552,0.76,202.99,202.98,183.11577422]
[1757276914379,0.76,202.99,202.98,112.99825117]
[1757276914592,0.76,202.99,202.98,35.83577422]
[1757276919785,0.06,202.99,202.98,35.83577422]
[1757276920265,0.78,202.99,202.98,35.83577422]
[1757276920465,0.06,202.99,202.98,35.83577422]
[1757276920984,0.78,202.99,202.98,65.94843359]
[1757276924386,0.78,202.99,202.98,67.59726046]
[1757276926375,0.78,202.99,202.98,147.69726046]
[1757276926573,0.78,202.99,202.98,147.20460109]
[1757276927588,0.06,202.99,202.98,147.20460109]
[1757276927780,0.06,202.99,202.98,151.79095101]
[1757276928990,0.78,202.99,202.98,147.20460109]
[1757276939700,0.78,202.99,202.98,117.58460109]
[1757276944183,0.78,202.99,202.98,37.48460109]
[1757276946308,0.06,202.99,202.98,37.48460109]
[1757276946480,0.2,203.01,202.98,37.48460109]
[1757276946809,0.9,203.01,203.0,4.58634992]
[1757276947911,0.2,203.01,203.0,11.48411572]
[1757276948303,0.9,203.01,203.0,11.48411572]
[1757276960226,0.9,203.01,203.0,6.55800735]
[1757276960423,0.9,203.01,203.0,1.97165743]
[1757276960721,0.9,203.01,203.0,6.55800735]
[1757276962330,0.9,203.01,203.0,1.97165743]
[1757276968121,0.9,203.01,203.0,27.97165743]
[1757276972634,0.9,203.01,203.0,32.55800735]
[1757276979235,0.9,203.01,203.0,27.97165743]
[1757276983835,0.9,203.01,203.0,1.97165743]
[1757276984138,0.9,203.01,202.99,0.03]
[1757276984349,1.6,203.01,202.99,0.03]
[1757276990422,1.6,203.01,202.99,7.95261186]
[1757276990629,0.67,203.0,202.99,7.95261186]
[1757276990929,0.9,203.01,202.99,10.88950387]
[1757276991129,0.2,203.01,203.0,2.93689201]
[1757276991621,0.2,203.01,203.0,4.90874383]
[1757276992745,0.2,203.01,203.0,9.8348522]
[1757276997745,0.2,203.01,203.0,22.07503107]
[1757276999737,0.2,203.01,203.0,21.58242024]
[1757277000051,0.2,203.01,203.0,9.8348522]
[1757277001850,0.06,203.04,203.0,9.8348522]
[1757277001851,0.06,203.04,203.03,39.59559401]
[1757277002024,0.06,203.04,203.03,80.07248602]
[1757277002641,0.06,203.04,203.03,111.6235605]
[1757277003747,0.06,203.04,203.03,116.54894098]
[1757277012569,0.06,203.04,203.03,196.64894098]
[1757277013359,0.06,203.04,203.03,196.62894098]
[1757277014771,0.77,203.04,203.03,156.17204897]
[1757277014973,0.06,203.04,203.03,193.69204897]
[1757277015174,0.06,203.04,203.03,196.62894098]
[1757277019263,0.77,203.04,203.03,196.62894098]
[1757277019573,0.06,203.04,203.03,196.62894098]
[1757277028857,0.77,203.04,203.03,196.62894098]
[1757277029057,0.06,203.04,203.03,196.62894098]
[1757277029358,0.77,203.04,203.03,142.57645496]
[1757277029691,0.77,203.04,203.03,183.03334697]
[1757277036592,0.77,203.04,203.03,140.58796649]
[1757277036770,0.77,203.04,203.03,178.10796649]
[1757277037482,0.77,203.04,203.03,183.03334697]
[1757277048300,0.06,203.04,203.03,184.68043557]
[1757277048788,0.77,203.04,203.03,184.68043557]
[1757277049989,0.06,203.04,203.03,184.68043557]
[1757277052002,0.77,203.04,203.03,184.68043557]
[1757277052200,0.06,203.04,203.03,184.68043557]
[1757277061112,0.06,203.04,203.03,198.27602958]
[1757277061511,0.06,203.05,203.04,34.16398061]
[1757277061704,0.06,203.05,203.04,72.1564944]
[1757277061910,0.05026999,203.06,203.05,43.17559401]
[1757277062106,0.05026999,203.06,203.05,80.67559401]
[1757277062613,0.05026999,203.06,203.05,87.57127249]
[1757277062816,0.05026999,203.06,203.05,92.1552531]
[1757277065914,0.05026999,203.06,203.05,172.2552531]
[1757277070015,0.05026999,203.06,203.05,134.7552531]
[1757277070218,0.05026999,203.06,203.05,172.2552531]
[1757277071104,0.05026999,203.06,203.05,172.2552531]
[1757277072025,0.03026999,203.06,203.05,172.2552531]
[1757277073433,0.71026999,203.06,203.05,172.2552531]
[1757277073937,0.71026999,203.06,203.05,134.7552531]
[1757277074113,0.71026999,203.06,203.05,172.2552531]
[1757277074509,0.03026999,203.06,203.05,172.2552531]
[1757277076433,0.71026999,203.06,203.05,172.2552531]
[1757277077232,0.71026999,203.06,203.05,134.7552531]
[1757277077531,0.71026999,203.06,203.05,172.2552531]
[1757277079937,0.71026999,203.06,203.05,134.7552531]
[1757277080129,0.71026999,203.06,203.05,172.2552531]
[1757277081429,0.71026999,203.06,203.05,134.7552531]
[1757277081628,0.71026999,203.06,203.05,172.2552531]
[1757277082840,0.71026999,203.06,203.05,134.7552531]
[1757277083032,0.71026999,203.06,203.05,172.2552531]
[1757277083436,0.71026999,203.06,203.05,134.7552531]
[1757277083652,0.71026999,203.06,203.05,172.2552531]
[1757277083942,0.71026999,203.06,203.05,158.65965909]
[1757277090747,0.71026999,203.06,203.05,121.15965909]
[1757277091036,0.71026999,203.06,203.05,158.65965909]
[1757277095556,0.71026999,203.06,203.05,121.15965909]
[1757277095754,0.71026999,203.06,203.05,158.65965909]
[1757277107260,0.71026999,203.06,203.05,41.05965909]
[1757277108652,0.71026999,203.06,203.05,6.55476375]
[1757277108852,0.71026999,203.06,203.05,1.97078314]
[1757277109158,0.71026999,203.06,203.05,27.97078314]
[1757277109448,0.71026999,203.06,203.05,27.25078314]
[1757277109652,10.21890341,203.06,203.05,1.25078314]
[1757277109861,10.21890341,203.06,203.03,0.03]
[1757277110032,5.2942506,203.06,203.04,1.97156024]
[1757277110236,4.6142506,203.06,203.04,1.97156024]
[1757277110533,0.71,203.05,203.03,26.03]
[1757277110749,0.71,203.04,203.03,31.01444856]
[1757277111158,0.71,203.04,203.03,5.01444856]
[1757277111547,0.71,203.04,203.03,31.01444856]
[1757277114461,0.71,203.04,203.03,5.01444856]
[1757277115244,0.71,203.04,203.03,31.01444856]
[1757277115757,0.71,203.04,203.03,5.01444856]
[1757277116049,0.71,203.04,203.03,0.03]
[1757277123870,0.71,203.04,203.03,5.0144199]
[1757277132986,0.06,203.05,203.03,5.0144199]
[1757277133163,0.06,203.05,203.04,3.63554879]
[1757277133566,0.06,203.05,203.04,31.6067204]
[1757277135686,0.06,203.05,203.04,36.5318583]
[1757277139803,0.06,203.05,203.04,35.8318583]
[1757277142979,0.06,203.05,203.04,36.5318583]
[1757277144095,0.06,203.05,203.04,35.8318583]
[1757277146004,0.77,203.05,203.04,35.8318583]
[1757277146698,0.77,203.05,203.04,35.8618583]
[1757277147217,0.77,203.05,203.04,28.00117161]
[1757277148018,0.77,203.05,203.04,2.00117161]
[1757277151512,38.25,203.05,203.04,2.00117161]
[1757277153616,0.77,203.05,203.04,2.00117161]
[1757277154320,38.25,203.05,203.04,2.00117161]
[1757277155426,0.77,203.05,203.04,2.00117161]
[1757277155624,38.25,203.05,203.04,2.00117161]
[1757277156327,0.77,203.05,203.04,2.00117161]
[1757277156619,38.25,203.05,203.04,2.00117161]
[1757277156817,0.77,203.05,203.04,2.00117161]
[1757277157020,38.25,203.05,203.04,2.00117161]
[1757277158735,0.06,203.05,203.04,2.00117161]
[1757277158927,37.54,203.05,203.04,2.00117161]
[1757277160209,38.19,203.05,203.04,2.00117161]
[1757277175749,0.71,203.05,203.04,2.00117161]
[1757277176120,38.19,203.05,203.04,2.00117161]
[1757277177555,0.71,203.05,203.04,2.00117161]
[1757277177739,38.19,203.05,203.04,2.00117161]
[1757277177941,0.71,203.05,203.04,2.00117161]
[1757277178238,38.19,203.05,203.04,2.00117161]
[1757277183859,0.71,203.05,203.04,2.00117161]
[1757277184071,38.19,203.05,203.04,2.00117161]
[1757277189757,38.19,203.05,203.04,6.58756155]
[1757277191964,38.19,203.05,203.04,2.00117161]
[1757277198675,0.71,203.05,203.04,2.00117161]
[1757277198871,38.19,203.05,203.04,2.00117161]
[1757277199056,37.51026999,203.06,203.04,12.17269945]
[1757277199258,37.51026999,203.06,203.05,5.24638994]
[1757277199559,0.03026999,203.06,203.05,4.58638994]
[1757277199764,37.51026999,203.06,203.05,20.03090562]
[1757277201276,37.51026999,203.06,203.05,24.95580096]
[1757277201574,37.51026999,203.06,203.05,24.29580096]
[1757277201780,0.03026999,203.06,203.05,24.95580096]
[1757277204358,0.03026999,203.06,203.05,24.29580096]
[1757277205586,0.03026999,203.06,203.05,24.95580096]
[1757277205762,0.03026999,203.06,203.05,24.29580096]
[1757277207663,0.03026999,203.06,203.05,19.70941102]
[1757277207864,0.03026999,203.06,203.05,24.29580096]
[1757277220982,0.70026999,203.06,203.05,24.29580096]
[1757277227110,0.03026999,203.06,203.05,24.29580096]
[1757277231391,0.03026999,203.06,203.05,24.32580096]
[1757277232004,0.03026999,203.06,203.05,19.73941102]
[1757277232210,0.70026999,203.06,203.05,24.32580096]
[1757277232396,0.70026999,203.06,203.05,22.67349958]
[1757277232594,0.70026999,203.06,203.05,14.81451568]
[1757277232905,0.70026999,203.06,203.05,0.03]
[1757277233111,38.16026999,203.06,203.05,2.96408856]
[1757277233297,0.70026999,203.06,203.05,2.96408856]
[1757277234012,38.16026999,203.06,203.05,2.96408856]
[1757277234310,38.16026999,203.06,203.05,4.93555163]
[1757277242111,38.16026999,203.06,203.05,2.00146307]
[1757277243005,0.70026999,203.06,203.05,2.00146307]
[1757277243602,38.16026999,203.06,203.05,2.00146307]
[1757277244911,0.70026999,203.06,203.05,2.00146307]
[1757277245115,38.16026999,203.06,203.05,2.00146307]